{"text_format":"3","workbook":"xlsx","n_sheets":5,"sheets":["Pulpit nawigacyjny","Wydatki i dochody","Raport budżetu","Listy danych","Tabela przestawna kategorii"],"not_rendered":{"charts":3,"defined_names":18,"pivot_tables":2},"read":"whole","date_system":"1900"}

{"sheet":"Pulpit nawigacyjny","index":0,"n_rows":21,"n_cols":16,"rows_kept":21,"merged":[[5,2,5,3],[8,9,8,10],[9,9,9,10],[10,9,10,10]]}
[]
[null,null,"Półmiesięczny budżet domowy",{"$nulls":12},"PULPIT NAWIGACYJNY"]
[]
[]
[]
[null,null,{"$f":"CHOOSE(NumerMiesiąca,\"Styczeń\",\"Luty\",\"Marzec\",\"Kwiecień\",\"Maj\",\"Czerwiec\",\"Lipiec\",\"Sierpień\",\"Wrzesień\",\"Październik\",\"Listopad\",\"Grudzień\")","v":"Sierpień"},null,8,{"$nulls":5},2012]
[]
[]
[null,null,"SUMY MIESIĘCZNE","Monthly Totals",{"$nulls":5},"SUMY ROCZNE",null,"Annual Totals"]
[null,null,"DOCHODY","Wydatki",{"$f":"SUMIF(Wydatki[DATA],\"<=\"&Data_Miesiąc_końcowy,Wydatki[KWOTA])-SUMIF(Wydatki[DATA],\"<\"&Data_Miesiąc_początkowy,Wydatki[KWOTA])","v":{"v":0,"d":"0 zł"}},{"$nulls":4},"DOCHODY",null,"Wydatki",{"$f":"SUM(IF(YEAR(Wydatki[DATA])=K6,Wydatki[KWOTA]))","v":{"v":10242,"d":"10,242 zł"}}]
[null,null,"WYDATKI","dochód",{"$f":"SUMIF(dochód[DATA],\"<=\"&Data_Miesiąc_końcowy,dochód[KWOTA])-SUMIF(dochód[DATA],\"<\"&Data_Miesiąc_początkowy,dochód[KWOTA])","v":{"v":0,"d":"0 zł"}},{"$nulls":4},"WYDATKI",null,"dochód",{"$f":"SUM(IF(YEAR(dochód[DATA])=K6,dochód[KWOTA]))","v":{"v":12700,"d":"12,700 zł"}}]
[]
[]
[]
[]
[]
[{"$nulls":3},"STYCZEŃ","LUTY","MARZEC","KWIECIEŃ","MAJ","CZERWIEC","LIPIEC","SIERPIEŃ","WRZESIEŃ","PAŹDZIERNIK","LISTOPAD","GRUDZIEŃ"]
[null,null,"Dochody 1–15",{"$f":"SUMIFS(dochód[KWOTA],dochód[OPIS],\"<=\"&Data_środkowa,dochód[OPIS],\">=\"&Data_początkowa)","v":{"v":0,"d":"0.00 zł"}},{"$f":"SUMIFS(dochód[KWOTA],dochód[OPIS],\"<=\"&Data_środkowa,dochód[OPIS],\">=\"&Data_początkowa)","v":{"v":0,"d":"0.00 zł"}},{"$f":"SUMIFS(dochód[KWOTA],dochód[OPIS],\"<=\"&Data_środkowa,dochód[OPIS],\">=\"&Data_początkowa)","v":{"v":0,"d":"0.00 zł"}},{"$f":"SUMIFS(dochód[KWOTA],dochód[OPIS],\"<=\"&Data_środkowa,dochód[OPIS],\">=\"&Data_początkowa)","v":{"v":0,"d":"0.00 zł"}},{"$f":"SUMIFS(dochód[KWOTA],dochód[OPIS],\"<=\"&Data_środkowa,dochód[OPIS],\">=\"&Data_początkowa)","v":{"v":0,"d":"0.00 zł"}},{"$f":"SUMIFS(dochód[KWOTA],dochód[OPIS],\"<=\"&Data_środkowa,dochód[OPIS],\">=\"&Data_początkowa)","v":{"v":0,"d":"0.00 zł"}},{"$f":"SUMIFS(dochód[KWOTA],dochód[OPIS],\"<=\"&Data_środkowa,dochód[OPIS],\">=\"&Data_początkowa)","v":{"v":0,"d":"0.00 zł"}},{"$f":"SUMIFS(dochód[KWOTA],dochód[OPIS],\"<=\"&Data_środkowa,dochód[OPIS],\">=\"&Data_początkowa)","v":{"v":0,"d":"0.00 zł"}},{"$f":"SUMIFS(dochód[KWOTA],dochód[OPIS],\"<=\"&Data_środkowa,dochód[OPIS],\">=\"&Data_początkowa)","v":{"v":0,"d":"0.00 zł"}},{"$f":"SUMIFS(dochód[KWOTA],dochód[OPIS],\"<=\"&Data_środkowa,dochód[OPIS],\">=\"&Data_początkowa)","v":{"v":0,"d":"0.00 zł"}},{"$f":"SUMIFS(dochód[KWOTA],dochód[OPIS],\"<=\"&Data_środkowa,dochód[OPIS],\">=\"&Data_początkowa)","v":{"v":0,"d":"0.00 zł"}},{"$f":"SUMIFS(dochód[KWOTA],dochód[OPIS],\"<=\"&Data_środkowa,dochód[OPIS],\">=\"&Data_początkowa)","v":{"v":0,"d":"0.00 zł"}}]
[null,null,"Dochody 16–koniec miesiąca",{"$f":"SUMIFS(dochód[KWOTA],dochód[OPIS],\"<=\"&Data_końcowa,dochód[OPIS],\">=\"&Data_środkowa+1)","v":{"v":0,"d":"0.00 zł"}},{"$f":"SUMIFS(dochód[KWOTA],dochód[OPIS],\"<=\"&Data_końcowa,dochód[OPIS],\">=\"&Data_środkowa+1)","v":{"v":0,"d":"0.00 zł"}},{"$f":"SUMIFS(dochód[KWOTA],dochód[OPIS],\"<=\"&Data_końcowa,dochód[OPIS],\">=\"&Data_środkowa+1)","v":{"v":0,"d":"0.00 zł"}},{"$f":"SUMIFS(dochód[KWOTA],dochód[OPIS],\"<=\"&Data_końcowa,dochód[OPIS],\">=\"&Data_środkowa+1)","v":{"v":0,"d":"0.00 zł"}},{"$f":"SUMIFS(dochód[KWOTA],dochód[OPIS],\"<=\"&Data_końcowa,dochód[OPIS],\">=\"&Data_środkowa+1)","v":{"v":0,"d":"0.00 zł"}},{"$f":"SUMIFS(dochód[KWOTA],dochód[OPIS],\"<=\"&Data_końcowa,dochód[OPIS],\">=\"&Data_środkowa+1)","v":{"v":0,"d":"0.00 zł"}},{"$f":"SUMIFS(dochód[KWOTA],dochód[OPIS],\"<=\"&Data_końcowa,dochód[OPIS],\">=\"&Data_środkowa+1)","v":{"v":0,"d":"0.00 zł"}},{"$f":"SUMIFS(dochód[KWOTA],dochód[OPIS],\"<=\"&Data_końcowa,dochód[OPIS],\">=\"&Data_środkowa+1)","v":{"v":0,"d":"0.00 zł"}},{"$f":"SUMIFS(dochód[KWOTA],dochód[OPIS],\"<=\"&Data_końcowa,dochód[OPIS],\">=\"&Data_środkowa+1)","v":{"v":0,"d":"0.00 zł"}},{"$f":"SUMIFS(dochód[KWOTA],dochód[OPIS],\"<=\"&Data_końcowa,dochód[OPIS],\">=\"&Data_środkowa+1)","v":{"v":0,"d":"0.00 zł"}},{"$f":"SUMIFS(dochód[KWOTA],dochód[OPIS],\"<=\"&Data_końcowa,dochód[OPIS],\">=\"&Data_środkowa+1)","v":{"v":0,"d":"0.00 zł"}},{"$f":"SUMIFS(dochód[KWOTA],dochód[OPIS],\"<=\"&Data_końcowa,dochód[OPIS],\">=\"&Data_środkowa+1)","v":{"v":0,"d":"0.00 zł"}}]
[null,null,"Wydatki 1–15",{"$f":"SUMIFS(Wydatki[KWOTA],Wydatki[DATA],\"<=\"&Data_środkowa,Wydatki[DATA],\">=\"&Data_początkowa)","v":{"v":0,"d":"0.00 zł"}},{"$f":"SUMIFS(Wydatki[KWOTA],Wydatki[DATA],\"<=\"&Data_końcowa,Wydatki[DATA],\">=\"&Data_początkowa)","v":{"v":0,"d":"0.00 zł"}},{"$f":"SUMIFS(Wydatki[KWOTA],Wydatki[DATA],\"<=\"&Data_końcowa,Wydatki[DATA],\">=\"&Data_początkowa)","v":{"v":0,"d":"0.00 zł"}},{"$f":"SUMIFS(Wydatki[KWOTA],Wydatki[DATA],\"<=\"&Data_końcowa,Wydatki[DATA],\">=\"&Data_początkowa)","v":{"v":0,"d":"0.00 zł"}},{"$f":"SUMIFS(Wydatki[KWOTA],Wydatki[DATA],\"<=\"&Data_końcowa,Wydatki[DATA],\">=\"&Data_początkowa)","v":{"v":0,"d":"0.00 zł"}},{"$f":"SUMIFS(Wydatki[KWOTA],Wydatki[DATA],\"<=\"&Data_końcowa,Wydatki[DATA],\">=\"&Data_początkowa)","v":{"v":0,"d":"0.00 zł"}},{"$f":"SUMIFS(Wydatki[KWOTA],Wydatki[DATA],\"<=\"&Data_końcowa,Wydatki[DATA],\">=\"&Data_początkowa)","v":{"v":0,"d":"0.00 zł"}},{"$f":"SUMIFS(Wydatki[KWOTA],Wydatki[DATA],\"<=\"&Data_końcowa,Wydatki[DATA],\">=\"&Data_początkowa)","v":{"v":0,"d":"0.00 zł"}},{"$f":"SUMIFS(Wydatki[KWOTA],Wydatki[DATA],\"<=\"&Data_końcowa,Wydatki[DATA],\">=\"&Data_początkowa)","v":{"v":1425,"d":"1,425.00 zł"}},{"$f":"SUMIFS(Wydatki[KWOTA],Wydatki[DATA],\"<=\"&Data_końcowa,Wydatki[DATA],\">=\"&Data_początkowa)","v":{"v":6025,"d":"6,025.00 zł"}},{"$f":"SUMIFS(Wydatki[KWOTA],Wydatki[DATA],\"<=\"&Data_końcowa,Wydatki[DATA],\">=\"&Data_początkowa)","v":{"v":2792,"d":"2,792.00 zł"}},{"$f":"SUMIFS(Wydatki[KWOTA],Wydatki[DATA],\"<=\"&Data_końcowa,Wydatki[DATA],\">=\"&Data_początkowa)","v":{"v":0,"d":"0.00 zł"}}]
[null,null,"Wydatki 16–koniec miesiąca",{"$f":"SUMIFS(Wydatki[KWOTA],Wydatki[DATA],\"<=\"&Data_końcowa,Wydatki[DATA],\">=\"&Data_środkowa+1)","v":{"v":0,"d":"0.00 zł"}},{"$f":"SUMIFS(Wydatki[KWOTA],Wydatki[DATA],\"<=\"&Data_końcowa,Wydatki[DATA],\">=\"&Data_środkowa+1)","v":{"v":0,"d":"0.00 zł"}},{"$f":"SUMIFS(Wydatki[KWOTA],Wydatki[DATA],\"<=\"&Data_końcowa,Wydatki[DATA],\">=\"&Data_środkowa+1)","v":{"v":0,"d":"0.00 zł"}},{"$f":"SUMIFS(Wydatki[KWOTA],Wydatki[DATA],\"<=\"&Data_końcowa,Wydatki[DATA],\">=\"&Data_środkowa+1)","v":{"v":0,"d":"0.00 zł"}},{"$f":"SUMIFS(Wydatki[KWOTA],Wydatki[DATA],\"<=\"&Data_końcowa,Wydatki[DATA],\">=\"&Data_środkowa+1)","v":{"v":0,"d":"0.00 zł"}},{"$f":"SUMIFS(Wydatki[KWOTA],Wydatki[DATA],\"<=\"&Data_końcowa,Wydatki[DATA],\">=\"&Data_środkowa+1)","v":{"v":0,"d":"0.00 zł"}},{"$f":"SUMIFS(Wydatki[KWOTA],Wydatki[DATA],\"<=\"&Data_końcowa,Wydatki[DATA],\">=\"&Data_środkowa+1)","v":{"v":0,"d":"0.00 zł"}},{"$f":"SUMIFS(Wydatki[KWOTA],Wydatki[DATA],\"<=\"&Data_końcowa,Wydatki[DATA],\">=\"&Data_środkowa+1)","v":{"v":0,"d":"0.00 zł"}},{"$f":"SUMIFS(Wydatki[KWOTA],Wydatki[DATA],\"<=\"&Data_końcowa,Wydatki[DATA],\">=\"&Data_środkowa+1)","v":{"v":300,"d":"300.00 zł"}},{"$f":"SUMIFS(Wydatki[KWOTA],Wydatki[DATA],\"<=\"&Data_końcowa,Wydatki[DATA],\">=\"&Data_środkowa+1)","v":{"v":875,"d":"875.00 zł"}},{"$f":"SUMIFS(Wydatki[KWOTA],Wydatki[DATA],\"<=\"&Data_końcowa,Wydatki[DATA],\">=\"&Data_środkowa+1)","v":{"v":0,"d":"0.00 zł"}},{"$f":"SUMIFS(Wydatki[KWOTA],Wydatki[DATA],\"<=\"&Data_końcowa,Wydatki[DATA],\">=\"&Data_środkowa+1)","v":{"v":0,"d":"0.00 zł"}}]

{"sheet":"Wydatki i dochody","index":1,"n_rows":40,"n_cols":10,"rows_kept":40}
[]
[null,null,"Półmiesięczny budżet domowy",{"$nulls":6},"DOCHODY I WYDATKI"]
[]
[]
[]
[null,null,"DOCHODY",{"$nulls":3},"WYDATKI"]
[]
[null,null,"DATA","OPIS","KWOTA",null,"DATA","KATEGORIA","OPIS","KWOTA"]
[null,null,{"$f":"NOW()-14","v":"2012-12-05T13:48:07.390"},"Wypłata Dominika",{"v":1300,"d":"1,300.00 zł"},null,{"$f":"NOW()-7","v":"2012-12-12T13:48:07.390"},"Gospodarstwo domowe","Kredyt hipoteczny",{"v":1000,"d":"1,000.00 zł"}]
[null,null,{"$f":"NOW()-14","v":"2012-12-05T13:48:07.390"},"Wypłata Anny",{"v":1300,"d":"1,300.00 zł"},null,{"$f":"NOW()-7","v":"2012-12-12T13:48:07.390"},"Gospodarstwo domowe","Energia elektryczna",{"v":100,"d":"100.00 zł"}]
[null,null,{"$f":"NOW()-28","v":"2012-11-21T13:48:07.390"},"Wypłata Dominika",{"v":1500,"d":"1,500.00 zł"},null,"2012-12-12T13:48:07.390","Gospodarstwo domowe","Woda/ścieki",{"v":50,"d":"50.00 zł"}]
[null,null,"2012-11-21T13:48:07.390","Wypłata Anny",{"v":1600,"d":"1,600.00 zł"},null,"2012-12-12T13:48:07.390","Gospodarstwo domowe","Wywóz śmieci",{"v":25,"d":"25.00 zł"}]
[null,null,{"$f":"NOW()-42","v":"2012-11-07T13:48:07.390"},"Wypłata Dominika",{"v":1300,"d":"1,300.00 zł"},null,"2012-12-12T13:48:07.390","Gospodarstwo domowe","Telefon komórkowy",{"v":100,"d":"100.00 zł"}]
[null,null,"2012-11-07T13:48:07.390","Wypłata Anny",{"v":1300,"d":"1,300.00 zł"},null,"2012-12-12T13:48:07.390","Gospodarstwo domowe","Telefon domowy",{"v":30,"d":"30.00 zł"}]
[null,null,{"$f":"NOW()-56","v":"2012-10-24T13:48:07.390"},"Wypłata Dominika",{"v":1500,"d":"1,500.00 zł"},null,"2012-12-12T13:48:07.390","Gospodarstwo domowe","Internet",{"v":50,"d":"50.00 zł"}]
[null,null,"2012-10-24T13:48:07.390","Wypłata Anny",{"v":1600,"d":"1,600.00 zł"},null,"2012-12-12T13:48:07.390","Gospodarstwo domowe","Telewizja",{"v":50,"d":"50.00 zł"}]
[null,null,{"$f":"NOW()-70","v":"2012-10-10T13:48:07.390"},"Wypłata Dominika",{"v":1300,"d":"1,300.00 zł"},null,"2012-12-12T13:48:07.390","Gospodarstwo domowe","Utrzymanie/naprawy",{"v":25,"d":"25.00 zł"}]
[{"$nulls":6},{"$f":"NOW()-8","v":"2012-12-11T13:48:07.390"},"Gospodarstwo domowe","Karta kredytowa 1 ",{"v":100,"d":"100.00 zł"}]
[{"$nulls":6},{"$f":"NOW()-9","v":"2012-12-10T13:48:07.390"},"Rozrywka","Filmy",{"v":37,"d":"37.00 zł"}]
[{"$nulls":6},{"$f":"NOW()-10","v":"2012-12-09T13:48:07.390"},"Jedzenie","Artykuły spożywcze",{"v":350,"d":"350.00 zł"}]
[{"$nulls":6},{"$f":"NOW()-11","v":"2012-12-08T13:48:07.390"},"Jedzenie","Restauracje",{"v":75,"d":"75.00 zł"}]
[{"$nulls":6},{"$f":"NOW()-12","v":"2012-12-07T13:48:07.390"},"Dzieci","Pieniądze na obiad",{"v":150,"d":"150.00 zł"}]
[{"$nulls":6},{"$f":"NOW()-13","v":"2012-12-06T13:48:07.390"},"Fundusze inwestycyjne","Oszczędności",{"v":250,"d":"250.00 zł"}]
[{"$nulls":6},{"$f":"NOW()-14","v":"2012-12-05T13:48:07.390"},"Fundusze inwestycyjne","Fundusz inwestycyjny",{"v":250,"d":"250.00 zł"}]
[{"$nulls":6},{"$f":"NOW()-15","v":"2012-12-04T13:48:07.390"},"Osobiste","Klub sportowy/fitness",{"v":100,"d":"100.00 zł"}]
[{"$nulls":6},{"$f":"NOW()-16","v":"2012-12-03T13:48:07.390"},"Zwierzęta","Jedzenie",{"v":50,"d":"50.00 zł"}]
[{"$nulls":6},{"$f":"NOW()-20","v":"2012-11-29T13:48:07.390"},"Zwierzęta","Pielęgnacja",{"v":50,"d":"50.00 zł"}]
[{"$nulls":6},{"$f":"NOW()-20","v":"2012-11-29T13:48:07.390"},"Zwierzęta","Inne",{"v":50,"d":"50.00 zł"}]
[{"$nulls":6},{"$f":"NOW()-25","v":"2012-11-24T13:48:07.390"},"Transport","Spłata samochodu 1",{"v":300,"d":"300.00 zł"}]
[{"$nulls":6},{"$f":"NOW()-25","v":"2012-11-24T13:48:07.390"},"Transport","Spłata samochodu 2",{"v":350,"d":"350.00 zł"}]
[{"$nulls":6},{"$f":"NOW()-25","v":"2012-11-24T13:48:07.390"},"Transport","Ubezpieczenie samochodu",{"v":50,"d":"50.00 zł"}]
[{"$nulls":6},{"$f":"NOW()-30","v":"2012-11-19T13:48:07.390"},"Transport","Paliwo",{"v":50,"d":"50.00 zł"}]
[{"$nulls":6},{"$f":"NOW()-31","v":"2012-11-18T13:48:07.390"},"Transport","Paliwo",{"v":25,"d":"25.00 zł"}]
[{"$nulls":6},{"$f":"NOW()-42","v":"2012-11-07T13:48:07.390"},"Transport","Utrzymanie/naprawy",{"v":150,"d":"150.00 zł"}]
[{"$nulls":6},{"$f":"NOW()-45","v":"2012-11-04T13:48:07.390"},"Gospodarstwo domowe","Kredyt hipoteczny",{"v":5000,"d":"5,000.00 zł"}]
[{"$nulls":6},{"$f":"NOW()-50","v":"2012-10-30T13:48:07.390"},"Gospodarstwo domowe","Materiały",{"v":200,"d":"200.00 zł"}]
[{"$nulls":6},{"$f":"NOW()-65","v":"2012-10-15T13:48:07.390"},"Gospodarstwo domowe","Telefon domowy",{"v":100,"d":"100.00 zł"}]
[{"$nulls":6},{"$f":"NOW()-70","v":"2012-10-10T13:48:07.390"},"Gospodarstwo domowe","Wywóz śmieci",{"v":50,"d":"50.00 zł"}]
[{"$nulls":6},{"$f":"NOW()-75","v":"2012-10-05T13:48:07.390"},"Gospodarstwo domowe","Kredyt hipoteczny",{"v":1000,"d":"1,000.00 zł"}]
[{"$nulls":6},{"$f":"NOW()-78","v":"2012-10-02T13:48:07.390"},"Rozrywka","Filmy",{"v":75,"d":"75.00 zł"}]

{"sheet":"Raport budżetu","index":2,"n_rows":41,"n_cols":8,"rows_kept":41}
[]
[null,null,"Półmiesięczny budżet domowy",{"$nulls":4},"RAPORT BUDŻETU"]
{"$rows_empty":10}
[null,null,"WYDATKI",null,null,"SUMY KATEGORII"]
[]
[null,null,"OPIS","SUMY "]
[null,null,"Artykuły spożywcze",{"v":350,"d":"350.00 zł"}]
[null,null,"Energia elektryczna",{"v":100,"d":"100.00 zł"}]
[null,null,"Filmy",{"v":112,"d":"112.00 zł"}]
[null,null,"Fundusz inwestycyjny",{"v":250,"d":"250.00 zł"}]
[null,null,"Inne",{"v":50,"d":"50.00 zł"}]
[null,null,"Internet",{"v":50,"d":"50.00 zł"}]
[null,null,"Jedzenie",{"v":50,"d":"50.00 zł"}]
[null,null,"Karta kredytowa 1 ",{"v":100,"d":"100.00 zł"}]
[null,null,"Klub sportowy/fitness",{"v":100,"d":"100.00 zł"}]
[null,null,"Kredyt hipoteczny",{"v":7000,"d":"7,000.00 zł"}]
[null,null,"Materiały",{"v":200,"d":"200.00 zł"}]
[null,null,"Oszczędności",{"v":250,"d":"250.00 zł"}]
[null,null,"Paliwo",{"v":75,"d":"75.00 zł"}]
[null,null,"Pielęgnacja",{"v":50,"d":"50.00 zł"}]
[null,null,"Pieniądze na obiad",{"v":150,"d":"150.00 zł"}]
[null,null,"Restauracje",{"v":75,"d":"75.00 zł"}]
[null,null,"Spłata samochodu 1",{"v":300,"d":"300.00 zł"}]
[null,null,"Spłata samochodu 2",{"v":350,"d":"350.00 zł"}]
[null,null,"Telefon domowy",{"v":130,"d":"130.00 zł"}]
[null,null,"Telefon komórkowy",{"v":100,"d":"100.00 zł"}]
[null,null,"Telewizja",{"v":50,"d":"50.00 zł"}]
[null,null,"Ubezpieczenie samochodu",{"v":50,"d":"50.00 zł"}]
[null,null,"Utrzymanie/naprawy",{"v":175,"d":"175.00 zł"}]
[null,null,"Woda/ścieki",{"v":50,"d":"50.00 zł"}]
[null,null,"Wywóz śmieci",{"v":75,"d":"75.00 zł"}]
[null,null,"SUMA",{"v":10242,"d":"10,242.00 zł"}]

{"sheet":"Listy danych","index":3,"n_rows":20,"n_cols":14,"rows_kept":20}
[]
[null,null,"Półmiesięczny budżet domowy",{"$nulls":10},"LISTY DANYCH"]
[]
[]
[null,null,"KONFIGURACJA         Kategorie danych poniżej służą do wypełniania list rozwijanych w tabeli Wydatki w arkuszu Wydatki i dochody. Zmodyfikuj nazwy kategorii i opisy pod każdą z kategorii, aby zaktualizować listy."]
[]
[null,null,"Gospodarstwo domowe","Rozrywka","Jedzenie","Prezenty/dotacje","Dzieci","Fundusze inwestycyjne","Medyczne","Inne","Osobiste","Zwierzęta","Podatki/opłaty prawne","Transport"]
[null,null,"Kredyt hipoteczny","Filmy","Artykuły spożywcze","Cele charytatywne 1","Ubrania","IKE","Lekarz/klinika","Inne","Ubrania","Jedzenie","Krajowe","Spłata samochodu 1"]
[null,null,"Energia elektryczna","Wideo/filmy","Restauracje","Cele charytatywne 2","Zabawki/gry","Oszczędności","Ubezpieczenie","Należności względem organizacji","Włosy/paznokcie","Materiały","Wojewódzkie","Spłata samochodu 2"]
[null,null,"Woda/ścieki","Muzyka",null,"Cele charytatywne 3","Pieniądze na obiad","Rachunek bieżący",null,null,"Pralnia","Medyczne","Lokalne","Ubezpieczenie samochodu"]
[null,null,"Wywóz śmieci","Koncerty/teatry",null,"Prezenty","Należności/opłaty","Emerytura",null,null,"Klub sportowy/fitness","Pielęgnacja","Inne","Licencja/rejestracja"]
[null,null,"Telefon komórkowy","Imprezy sportowe",null,null,"Artykuły szkolne","Fundusz inwestycyjny",null,null,"Zakupy","Inne","Adwokat","Paliwo"]
[null,null,"Telefon domowy","Inne",null,null,"Inne","Studia",null,null,"Inne",null,"Należności na rzecz dzieci","Utrzymanie/naprawy"]
[null,null,"Internet",{"$nulls":3},"Pralnia","Pożyczki",{"$nulls":4},"Alimenty","Transport publiczny"]
[null,null,"Telewizja",{"$nulls":4},"Pożyczki dla studentów",{"$nulls":4},"Inne"]
[null,null,"Utrzymanie/naprawy"]
[null,null,"Materiały"]
[null,null,"Kablówka/Internet/telefon"]
[null,null,"Karta kredytowa 1 "]
[null,null,"Karta kredytowa 2 "]

{"sheet":"Tabela przestawna kategorii","index":4,"n_rows":16,"n_cols":14,"rows_kept":16,"hidden":true}
[]
[null,null,"Półmiesięczny budżet domowy",{"$nulls":10},"TABELA PRZESTAWNA KATEGORII"]
[]
[]
[null,"Ta tabela przestawna stanowi źródło danych dla tabeli przestawnej sum kategorii w raporcie budżetu. "]
[]
[null,null,"Popisky řádků","Suma z KWOTA"]
[null,null,"Dzieci",{"v":150,"d":"150 zł"}]
[null,null,"Fundusze inwestycyjne",{"v":500,"d":"500 zł"}]
[null,null,"Gospodarstwo domowe",{"v":7880,"d":"7,880 zł"}]
[null,null,"Jedzenie",{"v":425,"d":"425 zł"}]
[null,null,"Osobiste",{"v":100,"d":"100 zł"}]
[null,null,"Rozrywka",{"v":112,"d":"112 zł"}]
[null,null,"Transport",{"v":925,"d":"925 zł"}]
[null,null,"Zwierzęta",{"v":150,"d":"150 zł"}]
[null,null,"Celkový součet",{"v":10242,"d":"10,242 zł"}]